[Event "Israel Open Championship 2023"]
[Site "Acre"]
[Date "2024.01.28"]
[Round "8.11"]
[White "Yaniv, Yuval"]
[Black "Kobo, Ori"]
[Result "0-1"]
[ECO "C02"]
[WhiteElo "2383"]
[BlackElo "2541"]
[Annotator "TA"]
[PlyCount "88"]
[EventDate "2024.01.18"]
[EventType "swiss"]
[EventCountry "ISR"]
[SourceTitle "playchess.com"]
[Source "ChessBase"]
[SourceQuality "1"]
[TimeControl "5400+30"]

{[%evp 24,88,36,33,37,27,31,0,-4,0,14,-58,-49,-46,0,0,0,-13,-20,-38,-26,-49,0,-59,-3,-10,-32,-52,-52,-45,0,0,2,0,0,0,0,-61,-35,-30,-46,-39,-39,-41,-45,-199,-201,-295,-297,-439,-441,-425,-396,-377,-372,-570,-525,-1197,-1098,-1249,-1220,-5601,-5443,-29992,-29993,-29993,-716]} 1. e4 {[%emt 0:00:17]} e6 {[%emt 0:00:06]} 2. d4 {[%emt 0:00:28]} d5 {[%emt 0:00:17]} 3. e5 {[%emt 0:00:13]} c5 {[%emt 0:00:12]} 4. c3 {[%emt 0:00:14]} Nc6 {[%emt 0:00:06]} 5. Nf3 {[%emt 0:00:05]} Bd7 {[%emt 0:00:09]} 6. Be2 {[%emt 0:00:25]} Nge7 {[%emt 0:00:08]} 7. O-O {[%emt 0:00:17]} Ng6 {[%emt 0:00:09]} 8. Be3 {[%emt 0:01:18]} Be7 {[%emt 0:00:08] C02: French: Advance Variation.} 9. Nbd2 {[%emt 0:00:27]} O-O {[%emt 0:00:08]} 10. a3 {[%emt 0:00:10]} a5 {[%emt 0:00:12]} 11. Re1 {[%emt 0:08:13]} h6 $146 {[%emt 0:02:38]} ({Predecessor:} 11... a4 12. g3 cxd4 13. cxd4 f6 14. exf6 Bxf6 15. Nb1 Nge7 16. Nc3 Nf5 17. Bd3 Be8 18. Bxf5 exf5 {0-1 Moussard,J (2625)-Fedoseev,V (2741) Wch Rapid Almaty 2022 (3)}) 12. g3 {[%emt 0:03:40]} Rc8 {[%emt 0:08:50]} 13. Bd3 {[%emt 0:02:30]} cxd4 {[%emt 0:01:33]} 14. cxd4 {[%emt 0:00:16]} Be8 {[%emt 0:04:27]} 15. Qb1 {[%emt 0:09:40]} f5 {[%emt 0:15:08]} 16. exf6 {[%emt 0:02:35]} Rxf6 {[%emt 0:00:03]} 17. h4 {[%emt 0:02:45]} (17. Qd1 $11) 17... Bd6 $15 {[%emt 0:06:34]} 18. Nh2 {[%emt 0:20:45]} e5 {[%emt 0:11:32]} (18... Nge7 $15) 19. Ng4 $11 {[%emt 0:04:06]} e4 {[%emt 0:12:33]} 20. Nxf6+ {[%emt 0:05:01]} Qxf6 {[%emt 0:01:11]} 21. Bxe4 {[%emt 0:01:25]} dxe4 {[%emt 0:00:17]} 22. Nxe4 {[%emt 0:00:07]} Qd8 {[%emt 0:04:11]} (22... Qe7 $15) 23. h5 {[%emt 0:04:57]} (23. Qd1 $1 $11) 23... Nf8 {[%emt 0:02:25]} (23... Nge7 $15 24. Qd1 Bb8) 24. Qd1 $1 $11 {[%emt 0:02:52]} Bb8 {[%emt 0:13:27]} 25. d5 {[%emt 0:14:48]} Ne5 {[%emt 0:00:38]} 26. d6 {[%emt 0:00:18]} Bf7 {[%emt 0:07:05]} 27. Bd4 {[%emt 0:04:01]} Nc6 {[%emt 0:01:48]} 28. Bc3 {[%emt 0:00:44]} Qd7 $1 {[%emt 0:00:45]} 29. Qf3 {[%emt 0:02:22]} Nh7 $1 {[%emt 0:00:57]} (29... Bxd6 $2 30. Nxd6 Bxh5 (30... Qxd6 $2 31. Qg4 $18) 31. Qxh5 $18) 30. Rad1 {[%emt 0:03:16]} ({Better is} 30. b4 $1 $11) 30... Ba7 {[%emt 0:01:32]} 31. b4 {[%emt 0:01:48]} axb4 {[%emt 0:00:31]} 32. axb4 {[%emt 0:00:01]} Rf8 {[%emt 0:00:36]} 33. b5 {[%emt 0:01:25]} Nd8 {[%emt 0:00:21]} 34. Bb2 $2 {[%emt 0:01:07] [#]} (34. Bd4 $15 Bxd4 35. Rxd4) 34... Bd5 $1 $19 {[%emt 0:02:27]} 35. Qc3 {[%emt 0:04:39]} (35. Qxf8+ $142 Nxf8 36. Rxd5) 35... Bxe4 $19 {[%emt 0:00:15]} 36. b6 {[%emt 0:00:34]} (36. Rxe4 $142 Ng5 (36... Bxf2+ $2 37. Kg2 $17) (36... Rxf2 37. b6 $11) 37. Qb3+ Kh8 38. Bxg7+ (38. Re2 $2 Bxf2+ 39. Rxf2 Nh3+ 40. Kg2 Nxf2 $19) 38... Qxg7 39. Re7 Bxf2+ 40. Kg2) 36... Bxb6 $19 {[%emt 0:01:13]} (36... Ng5 37. Qxg7+ (37. Qb3+ $2 Kh8 $19) 37... Qxg7 38. Bxg7 Bxb6 (38... Kxg7 39. bxa7 Nc6 40. Re3 $17) (38... Nf3+ $2 39. Kf1 $19) 39. Bxf8 Nf3+ (39... Kxf8 $2 40. Kf1 $19) 40. Kf1 Nxe1 41. Bxh6 $19 (41. Rxe1 $2 Bd3+ 42. Kg1 Kxf8 $19)) 37. Rxe4 {[%emt 0:00:02]} Bxf2+ {[%emt 0:01:45]} (37... Rxf2 38. Qb3+ Rf7+ 39. Qxb6 $11) 38. Kg2 {[%emt 0:00:15]} Ng5 {[%emt 0:00:39]} 39. Rg4 {[%emt 0:01:11]} (39. Qxg7+ {keeps fighting.} Qxg7 40. Bxg7 Kxg7 (40... Nxe4 $2 41. Bxf8 Kxf8 42. Kf3 $19) 41. Re7+ Kg8 42. Re5) 39... Rf7 {[%emt 0:01:19]} ({Stronger than} 39... Qxg4 40. Qxg7#) 40. Qc4 {[%emt 0:00:37]} b5 {[%emt 0:00:42]} ({Weaker is} 40... Bc5 41. Rxg5 hxg5 42. Qxc5 $11) 41. Qe2 {[%emt 0:00:00]} Nde6 {[%emt 0:00:00]} 42. Qe5 {[%emt 0:00:00]} Ba7 {[%emt 0:00:00]} 43. Bc1 {[%emt 0:00:00]} Rf2+ {[%emt 0:00:00]} 44. Kh1 {[%emt 0:00:00] [#]} Rh2+ {[%emt 0:00:00]} (44... Qf7 $142 $3 {[%mdl 512]} 45. Qd5 Rf1+ (45... Qxh5+ 46. Rh4 Qe2 47. Rg1 Nf3 48. Qh5 Rf1 49. Qe8+ Kh7 50. Rxh6+ gxh6 51. Qe7+ Kg8 52. Qe8+ Nf8 53. Qxf8+ Kxf8 54. Bxh6+ Kf7 55. Rxf1 Qxf1#) 46. Kh2 Qf2+ (46... Qxh5+ {gets mated.} 47. Rh4 Rf2+ 48. Kh1 Qe2 49. Rg1 Nf3 50. Qh5 Rf1 51. Qe8+ Kh7 52. Rxh6+ gxh6 53. Qe7+ Ng7 54. Qe4+ Qxe4 55. Rxf1 Ne1+ 56. Rf3 Qxf3+ 57. Kh2 Qh5#) 47. Qg2 Nf3+ (47... Rxd1 $2 48. Bxg5 Qxg2+ 49. Kxg2 $19) 48. Kh3 Qxg2+ (48... Rxd1 $2 49. Qxf2 Bxf2 50. Bxh6 $19) 49. Kxg2 Rf2+ 50. Kh3 Rh2#) 0-1

[Event "Israel Open Championship 2023"]
[Site "Acre"]
[Date "2024.01.28"]
[Round "8.12"]
[White "Iliaguev, Daniel"]
[Black "Zemach, Nadav"]
[Result "0-1"]
[ECO "D45"]
[WhiteElo "2153"]
[BlackElo "2384"]
[Annotator "TA"]
[PlyCount "82"]
[EventDate "2024.01.18"]
[EventType "swiss"]
[EventCountry "ISR"]
[SourceTitle "playchess.com"]
[Source "ChessBase"]
[SourceQuality "1"]
[TimeControl "5400+30"]

{[%evp 10,82,19,-12,0,0,0,0,0,0,0,-21,-19,-24,-20,-36,-41,-82,-68,-68,-71,-66,-70,-77,-65,-72,-44,-116,-108,-113,-122,-107,-102,-86,-108,-93,-96,-102,-73,-86,-35,-26,-31,-43,-41,-60,-51,-169,-175,-225,-110,-173,-150,-266,-247,-327,-328,-312,-327,-343,-275,-315,-316,-296,-273,-365,-371,-436,-410,-427,-415,-509,-471,-549,-535]} 1. e3 {[%emt 0:07:56]} d5 {[%emt 0:00:38]} 2. c4 {[%emt 0:00:13]} c6 {[%emt 0:00:23]} 3. Nf3 {[%emt 0:00:21]} Nf6 {[%emt 0:00:06]} 4. Nc3 {[%emt 0:00:15]} e6 {[%emt 0:00:06]} 5. d4 {[%emt 0:05:51]} Nbd7 {[%emt 0:00:09]} 6. Qb3 {[%emt 0:00:06]} a5 {[%emt 0:07:38]} 7. a3 {[%emt 0:04:48]} Bd6 {[%emt 0:03:56]} 8. Be2 {[%emt 0:01:46]} O-O {[%emt 0:00:33] The position is equal.} 9. O-O {[%emt 0:00:47]} Qe7 {[%emt 0:03:12]} 10. Rd1 {[%emt 0:17:37]} dxc4 {[%emt 0:13:56]} 11. Qxc4 {[%emt 0:03:50]} e5 {[%emt 0:00:41]} 12. dxe5 {[%emt 0:00:02]} Nxe5 {[%emt 0:00:14]} 13. Nxe5 {[%emt 0:00:21]} Bxe5 {[%emt 0:02:06]} 14. Bd2 {[%emt 0:11:11]} Be6 {[%emt 0:07:30]} 15. Qh4 {[%emt 0:00:08]} Bb3 {[%emt 0:00:36]} 16. Rdc1 {[%emt 0:01:29]} Rfd8 {[%emt 0:01:51]} 17. Be1 {[%emt 0:01:13]} b5 {[%emt 0:03:57] Black is more active.} 18. f4 {[%emt 0:06:18]} (18. Bf3 $15) 18... Bd6 $17 {[%emt 0:14:11]} 19. Bf3 {[%emt 0:00:11]} Qxe3+ {[%emt 0:02:56]} 20. Bf2 {[%emt 0:00:23]} Qxf4 {[%emt 0:00:16] Strongly threatening ...b4.} 21. Bxc6 {[%emt 0:12:46]} Rac8 {[%emt 0:00:20]} 22. Nxb5 {[%emt 0:06:31]} Qxh4 {[%emt 0:09:11]} (22... Ng4 {looks sharper.} 23. Nxd6 Rxd6 24. Bg3 Qd4+) 23. Bxh4 {[%emt 0:00:02]} Be5 {[%emt 0:00:08]} 24. Bf3 {[%emt 0:04:39]} Rb8 {[%emt 0:01:05]} (24... Rxc1+ 25. Rxc1 a4 (25... Bxb2 26. Rb1 $11) 26. Nc3 $11) (24... Bxb2 $17 25. Rxc8 Rxc8) 25. Rc5 $15 {[%emt 0:07:33]} Bf4 {[%emt 0:02:24]} 26. Bf2 {[%emt 0:00:10] Wards off Be3} Nd7 {[%emt 0:03:45]} 27. Rf5 {[%emt 0:01:02][%cal Ob5d4]} Be5 {[%emt 0:00:13]} 28. Na7 {[%emt 0:06:27]} ({Better is} 28. Nd4 $1 $15 g6 29. Rg5) 28... Be6 $19 {[%emt 0:04:37]} 29. Rh5 {[%emt 0:00:33]} (29. Rg5 $142 h6 (29... Rxb2 30. Nc6 $11) (29... Bxb2 30. Rf1 $17) 30. Rh5) 29... Bxb2 {[%emt 0:00:31]} ({Weaker is} 29... Rxb2 30. Nc6 Rdb8 31. Nxb8 (31. Nxe5 $2 Rb1+ 32. Rxb1 Rxb1+ $19) 31... Rxb8 32. Rd1 $16) (29... g6 $1 $19 {[%cal Rg6h5]} 30. Rh4 Bxb2 (30... Rxb2 31. Nc6 $17)) 30. Re1 {[%emt 0:00:18]} (30. Rf1 $17 Ne5 (30... Bxa3 31. Nc6 $11) 31. Rxe5 Bxe5 32. Nc6) 30... g6 $36 {[%emt 0:00:51][%mdl 2048] Black is in control.} (30... Bxa3 31. Nc6 $11) 31. Rh4 {[%emt 0:00:42]} (31. Rxa5 $17 {was called for.} Bc3 32. Nc6) 31... Ne5 $1 {[%emt 0:00:01]} ({Inferior is} 31... Bxa3 32. Nc6 $11) 32. Nc6 {[%emt 0:00:30]} Nxc6 {[%emt 0:00:24]} 33. Bxc6 {[%emt 0:00:07]} Bxa3 {[%emt 0:00:02]} 34. Rhe4 {[%emt 0:00:51]} Rbc8 {[%emt 0:01:02]} 35. Bb5 {[%emt 0:01:03]} Rd2 {[%emt 0:00:31]} 36. Ba4 {[%emt 0:00:00]} Bc5 {[%emt 0:01:02]} 37. Bxc5 {[%emt 0:00:14]} Rxc5 {[%emt 0:00:01]} 38. Re5 {[%emt 0:00:15]} Rxe5 {[%emt 0:01:23]} 39. Rxe5 {[%emt 0:00:17]} Bd5 {[%emt 0:01:02]} 40. Rg5 {[%emt 0:00:06]} Kg7 {[%emt 0:00:38]} 41. Kf1 {[%emt 0:00:33]} f5 {[%emt 0:00:14] Weighted Error Value: White=0.35/Black=0.11 (very precise) .  Mistake:       	White=5     	Black=2      Inaccurate:     	White=3     	Black=1      OK:         	White=9     	Black=20     Best:        	White=2     	Black=1      Strong:       	---       	Black=1} 0-1

[Event "Israel Open Championship 2023"]
[Site "Acre"]
[Date "2024.01.28"]
[Round "8.13"]
[White "Sherman, Raem"]
[Black "Pevzner, Maks"]
[Result "1-0"]
[ECO "B76"]
[WhiteElo "2295"]
[BlackElo "2072"]
[Annotator "RC"]
[PlyCount "95"]
[EventDate "2024.01.18"]
[EventType "swiss"]
[EventCountry "ISR"]
[SourceTitle "playchess.com"]
[Source "ChessBase"]
[SourceQuality "1"]
[TimeControl "5400+30"]

1. e4 {[%emt 0:00:31]} c5 {[%emt 0:00:57]} 2. Nf3 {[%emt 0:00:12]} d6 {[%emt 0:00:23]} 3. d4 {[%emt 0:00:10]} cxd4 {[%emt 0:00:16]} 4. Nxd4 {[%emt 0:00:07]} Nf6 {[%emt 0:00:05]} 5. Nc3 {[%emt 0:00:07]} g6 {[%emt 0:00:39]} 6. Be3 {[%emt 0:00:07]} Bg7 {[%emt 0:00:06]} 7. f3 {[%emt 0:00:06]} O-O {[%emt 0:00:18]} 8. Qd2 {[%emt 0:00:05]} Nc6 {[%emt 0:00:19]} 9. O-O-O {[%emt 0:00:29]} d5 {[%emt 0:02:08]} 10. exd5 {[%emt 0:00:19]} Nxd5 {[%emt 0:01:15]} 11. Nxc6 {[%emt 0:00:10]} bxc6 {[%emt 0:00:27]} 12. Bd4 {[%emt 0:00:07]} e5 {[%emt 0:01:00]} 13. Bc5 {[%emt 0:00:07]} Be6 {[%emt 0:01:45]} 14. Ne4 {[%emt 0:00:07]} Re8 {[%emt 0:01:23]} 15. h4 {[%emt 0:00:07]} h6 {[%emt 0:01:37]} 16. h5 {[%emt 0:00:15]} g5 {[%emt 0:19:22]} 17. g4 {[%emt 0:00:07]} Qc7 {[%emt 0:02:12]} 18. Bc4 {[%emt 0:06:25]} Nf4 {[%emt 0:02:33]} 19. Bxe6 {[%emt 0:00:32]} Nxe6 {[%emt 0:00:55]} 20. Qc3 {[%emt 0:03:24]} Nd4 {[%emt 0:04:43]} 21. Kb1 {[%emt 0:07:32]} Red8 {[%emt 0:03:02]} 22. a4 {[%emt 0:05:08]} Rd5 {[%emt 0:07:01]} 23. Rd3 {[%emt 0:05:03]} Rad8 {[%emt 0:03:19]} 24. Bxd4 {[%emt 0:07:35]} exd4 {[%emt 0:06:08]} 25. Qc4 {[%emt 0:00:16]} a5 {[%emt 0:01:36]} 26. Rhd1 {[%emt 0:03:55]} Rb8 {[%emt 0:10:42]} 27. Rb3 {[%emt 0:00:09]} Rxb3 {[%emt 0:00:26]} 28. Qxb3 {[%emt 0:00:20]} Rd8 {[%emt 0:00:24]} 29. Qc4 {[%emt 0:05:40]} Rb8 {[%emt 0:01:16]} 30. b3 {[%emt 0:01:32]} Rd8 {[%emt 0:15:07]} 31. Rd3 {[%emt 0:03:11]} Rd5 {[%emt 0:01:37]} 32. c3 {[%emt 0:04:56]} Qh2 {[%emt 0:03:01]} 33. cxd4 {[%emt 0:05:00]} Bxd4 {[%emt 0:01:20]} 34. Qc2 {[%emt 0:00:11]} Qe5 {[%emt 0:05:13]} 35. Rd2 {[%emt 0:06:52]} c5 {[%emt 0:00:20]} 36. Qc4 {[%emt 0:01:03]} Kg7 {[%emt 0:02:02]} 37. Ng3 {[%emt 0:05:46]} Rd7 {[%emt 0:03:12]} 38. Nf5+ {[%emt 0:00:09]} Kf8 {[%emt 0:00:27]} 39. Qb5 {[%emt 0:06:24]} Rd8 {[%emt 0:00:51]} 40. Qb6 {[%emt 0:01:44]} Rb8 {[%emt 0:00:18]} 41. Qxh6+ {[%emt 0:00:48]} Ke8 {[%emt 0:00:00]} 42. Kc2 {[%emt 0:01:05]} Kd7 {[%emt 0:00:00]} 43. Qa6 {[%emt 0:00:00]} Qd5 {[%emt 0:00:00]} 44. Qc4 {[%emt 0:00:00]} Qxc4+ {[%emt 0:00:00]} 45. bxc4 {[%emt 0:00:00]} Rb4 {[%emt 0:00:00]} 46. Nxd4 {[%emt 0:00:00]} cxd4 {[%emt 0:00:00]} 47. Rxd4+ {[%emt 0:00:00]} Ke7 {[%emt 0:00:00]} 48. Re4+ {[%emt 0:00:00]} 1-0

[Event "Israel Open Championship 2023"]
[Site "Acre"]
[Date "2024.01.28"]
[Round "8.14"]
[White "Orian, Noga"]
[Black "Kupervaser, Erez"]
[Result "1-0"]
[ECO "E73"]
[WhiteElo "2052"]
[BlackElo "2250"]
[Annotator "TA"]
[PlyCount "93"]
[EventDate "2024.01.18"]
[EventType "swiss"]
[EventCountry "ISR"]
[SourceTitle "playchess.com"]
[Source "ChessBase"]
[SourceQuality "1"]
[TimeControl "5400+30"]

{[%evp 12,93,53,30,30,16,35,8,29,23,20,14,28,15,13,8,34,30,35,24,47,25,41,29,46,32,47,33,43,36,43,37,117,119,123,116,131,127,134,100,117,112,135,110,156,157,156,149,158,139,187,187,192,185,271,270,272,283,759,702,5152,5123,29987,29988,29988,29982,29982,29955,29938,12847,5214,5043,29978,29979,29979,29977,29972,29966,29986,29987,29992,29992,29992,29993]} 1. d4 {[%emt 0:00:03]} Nf6 {[%emt 0:02:03]} 2. c4 {[%emt 0:00:13]} g6 {[%emt 0:00:42]} 3. Nc3 {[%emt 0:01:06]} Bg7 {[%emt 0:00:08]} 4. e4 {[%emt 0:00:09]} d6 {[%emt 0:00:06]} 5. Be2 {[%emt 0:00:12]} O-O {[%emt 0:00:10]} 6. Be3 {[%emt 0:00:04]} Nc6 {[%emt 0:01:02]} 7. d5 {[%emt 0:01:16]} Ne5 {[%emt 0:00:07]} 8. h3 {[%emt 0:00:04]} e6 {[%emt 0:02:27]} 9. Nf3 {[%emt 0:00:07]} Nxf3+ {[%emt 0:00:16] The position is equal.} 10. Bxf3 {[%emt 0:00:06]} Nd7 {[%emt 0:03:47]} 11. Qd2 {[%emt 0:00:40]} Nc5 {[%emt 0:02:29]} 12. O-O {[%emt 0:03:52]} a5 {[%emt 0:05:42]} 13. Rad1 {[%emt 0:02:12]} e5 {[%emt 0:03:35]} 14. Bxc5 {[%emt 0:01:53]} dxc5 {[%emt 0:00:35]} 15. d6 {[%emt 0:00:11]} Be6 {[%emt 0:04:58]} 16. Be2 {[%emt 0:02:56]} (16. b3 {simplifies} cxd6 17. Qxd6 Qxd6 18. Rxd6 h5 19. Rb6) 16... cxd6 {[%emt 0:08:31]} 17. Qxd6 {[%emt 0:00:16]} Qg5 {[%emt 0:00:51] Black is weak on the light squares} 18. Kh1 {[%emt 0:03:16]} (18. Qxc5 Bxh3 19. Bf3 Rfc8 $15) 18... Rac8 {[%emt 0:22:16]} 19. Nd5 {[%emt 0:07:27]} Bxd5 {[%emt 0:01:35]} 20. cxd5 {[%emt 0:09:30]} Qh4 {[%emt 0:03:06]} 21. Bg4 {[%emt 0:15:00]} Rcd8 {[%emt 0:00:10] White now steadily converts the win.} (21... Qd8 $14 22. Qxd8 Rcxd8) 22. Qxc5 $16 {[%emt 0:00:22]} h5 {[%emt 0:00:05][%cal Bh7h5,Bh5h4][%mdl 32]} 23. g3 $36 {[%emt 0:02:43][%mdl 2048] White is on the roll.} Qg5 {[%emt 0:02:52]} 24. Bf3 {[%emt 0:05:56] White is more active.} h4 {[%emt 0:00:05]} 25. Qc1 {[%emt 0:00:27]} Qe7 {[%emt 0:01:48]} 26. Qd2 {[%emt 0:01:19]} Rd6 {[%emt 0:03:14][%cal Bd8d6,Bd6a6,Ba6a2][%mdl 32]} 27. Rc1 {[%emt 0:05:40]} Kh7 {[%emt 0:01:41]} ({Black should try} 27... Rb6 28. a3 (28. Qxa5 Rxb2 29. Rb1 Rxb1 $14) 28... hxg3) 28. Qxa5 {[%emt 0:02:55]} hxg3 {[%emt 0:03:29]} 29. fxg3 {[%emt 0:00:13]} Ra6 {[%emt 0:00:06]} 30. Qc7 {[%emt 0:04:21]} Qg5 {[%emt 0:00:55]} (30... Qb4 $16) 31. Kg2 $18 {[%emt 0:02:52]} Rxa2 {[%emt 0:00:27]} 32. Rc2 {[%emt 0:00:03]} (32. Qxb7 $2 Qd2+ 33. Kh1 Rxb2 $19 (33... Qxb2 34. Qxb2 Rxb2 35. d6 $16) (33... Qxb2 34. Qxb2 Rxb2 35. d6 $16)) 32... f5 {[%emt 0:09:12]} (32... Qe3 $142 33. Qxb7 Bf6) 33. h4 {[%emt 0:05:17][%cal Bh3h4,Bh4h5,Bh5g6][%mdl 32]} (33. Qxb7 fxe4 34. Be2 Rxf1 35. Bxf1 Qe3 $16) 33... Qe3 {[%emt 0:03:10]} 34. h5 {[%emt 0:14:04]} (34. Qxb7 $2 fxe4 35. Rc7 exf3+ $19) 34... fxe4 $2 {[%emt 0:05:38]} (34... gxh5 35. exf5 (35. Qxb7 $2 {too greedy.} fxe4 36. Be2 Rxf1 $19) 35... Ra6) 35. hxg6+ {[%emt 0:00:05]} Kg8 {[%emt 0:10:42]} 36. Bd1 {[%emt 0:02:55] [#] Rxf8+ would kill now.} Rxf1 {[%emt 0:00:00]} 37. Kxf1 {[%emt 0:00:26]} Qd3+ {[%emt 0:00:00]} 38. Be2 {[%emt 0:01:13]} Ra1+ {[%emt 0:00:00]} 39. Kg2 {[%emt 0:00:51]} Rg1+ {[%emt 0:00:00]} 40. Kxg1 {[%emt 0:00:07] [#] White wants to mate with Qf7+.} Qxg3+ {[%emt 0:00:00]} 41. Kf1 {[%emt 0:01:09] Threatening mate with Qf7+.} Qf4+ {[%emt 0:00:00]} 42. Ke1 {[%emt 0:00:00] White mates.} Qg3+ {[%emt 0:00:00]} 43. Kd1 {[%emt 0:00:00]} Qg1+ {[%emt 0:00:00]} 44. Kd2 {[%emt 0:00:00]} Bh6+ {[%emt 0:00:00]} 45. Kc3 {[%emt 0:00:00]} Qe3+ {[%emt 0:00:00]} 46. Kb4 {[%emt 0:00:00]} Bf8+ {[%emt 0:00:00]} 47. d6 {[%emt 0:00:00] Weighted Error Value: White=0.09 (flawless) /Black=0.35.  Mistake:       	---       	Black=5      Inaccurate:     	White=1     	Black=2      OK:         	White=11    	Black=11     Best:        	White=1     	---} 1-0

[Event "Israel Open Championship 2023"]
[Site "Acre"]
[Date "2024.01.28"]
[Round "8.15"]
[White "Shilon Rahav, Eliran"]
[Black "Krayz, Alexander"]
[Result "0-1"]
[ECO "C01"]
[WhiteElo "2004"]
[BlackElo "2327"]
[Annotator "TA"]
[PlyCount "116"]
[EventDate "2024.01.18"]
[EventType "swiss"]
[EventCountry "ISR"]
[SourceTitle "playchess.com"]
[Source "ChessBase"]
[SourceQuality "1"]
[TimeControl "5400+30"]

{[%evp 15,116,0,0,-6,0,0,0,-11,-6,-12,0,0,0,0,0,0,0,0,0,-3,0,0,0,0,0,0,0,0,0,-14,0,-7,0,0,0,0,0,0,0,-4,0,-27,-9,-20,-4,-7,-5,-6,0,-54,-3,-40,-12,-13,-8,-2,-8,-12,-12,-18,-9,-49,-1,-21,0,-158,-137,-143,-145,-1371,-1273,-1317,-1352,-1381,-1272,-3756,-3071,-954,-5210,-1906,-1895,-29962,-29962,-29958,-2012,-2298,-29964,-29965,-29969,-29972,-29972,-29971,-29972,-29970,-29969,-29979,-29979,-29986,-29987,-29987,-29988,-29990,-355]} 1. e4 {[%emt 0:00:10]} e6 {[%emt 0:00:06]} 2. d4 {[%emt 0:00:21]} d5 {[%emt 0:00:10]} 3. exd5 {[%emt 0:00:07]} exd5 {[%emt 0:00:08]} 4. Bd3 {[%emt 0:00:33]} Bd6 {[%emt 0:00:38]} 5. Nf3 {[%emt 0:00:25]} Ne7 {[%emt 0:00:37]} 6. O-O {[%emt 0:00:42]} O-O {[%emt 0:00:30]} 7. Re1 {[%emt 0:01:04]} Bf5 {[%emt 0:00:32]} 8. Nc3 {[%emt 0:02:26]} c6 {[%emt 0:02:18]} 9. Bg5 {[%emt 0:04:56] [#] Bxf5 is the strong threat.} Bxd3 {[%emt 0:04:38]} 10. Qxd3 {[%emt 0:01:32]} Na6 {[%emt 0:03:11]} 11. Re2 {[%emt 0:06:52] The position is equal.} f6 {[%emt 0:09:17]} 12. Bh4 {[%emt 0:00:46]} Ng6 {[%emt 0:06:08]} 13. Bg3 {[%emt 0:01:27]} Qd7 {[%emt 0:06:39]} 14. Rae1 {[%emt 0:00:58]} Nc7 {[%emt 0:00:14]} 15. Bxd6 {[%emt 0:03:14]} Qxd6 {[%emt 0:00:18]} 16. g3 {[%emt 0:00:27] Wards off Nf4} Qd7 {[%emt 0:01:44]} 17. h4 {[%emt 0:05:11]} Qh3 {[%emt 0:03:53]} 18. Na4 {[%emt 0:02:45]} Rae8 {[%emt 0:05:25]} 19. Rxe8 {[%emt 0:17:09]} Rxe8 {[%emt 0:01:03]} 20. Rxe8+ {[%emt 0:01:09]} Nxe8 {[%emt 0:00:06]} 21. Qe2 {[%emt 0:02:02]} Kf7 {[%emt 0:01:53]} 22. h5 {[%emt 0:01:52]} Ne7 {[%emt 0:00:27]} (22... Qxh5 $2 23. Ne5+ $18) 23. Nc5 {[%emt 0:00:38]} Nd6 {[%emt 0:00:31]} 24. Nd3 {[%emt 0:01:49]} Qf5 {[%emt 0:03:34]} (24... Qxh5 $2 25. Nfe5+ $18) 25. Nc5 {[%emt 0:04:01]} b6 {[%emt 0:11:19]} 26. Nh4 {[%emt 0:00:34]} Qh3 {[%emt 0:01:25]} 27. Nd3 {[%emt 0:00:45]} Qe6 {[%emt 0:01:00]} 28. Kf1 {[%emt 0:03:26]} Qe4 {[%emt 0:01:43]} 29. Nf3 {[%emt 0:04:15]} g5 {[%emt 0:05:19] White should prevent ...g4.} 30. hxg6+ {[%emt 0:01:31]} hxg6 {[%emt 0:02:08]} 31. c3 {[%emt 0:01:55]} g5 {[%emt 0:02:16]} 32. a4 {[%emt 0:03:20] White is weak on the light squares} (32. Ke1 $11) 32... a5 {[%emt 0:03:35]} (32... g4 $15 33. Ng1 Ke8) 33. Ng1 {[%emt 0:03:56]} Nef5 {[%emt 0:03:19]} 34. g4 {[%emt 0:02:38]} Nh4 {[%emt 0:02:01]} (34... Ng7 {simplifies} 35. b4 axb4 36. Qxe4 Nxe4 37. cxb4 Ne6) 35. f3 {[%emt 0:00:48]} Qh7 {[%emt 0:02:00]} 36. Nh3 {[%emt 0:00:55]} Ng6 $36 {[%emt 0:00:34][%mdl 2048] White is under pressure.} (36... Nc4 {looks sharper.} 37. Kf2 Ng6 38. Kg3 Qh8) 37. Kg2 {[%emt 0:02:16]} Qh8 {[%emt 0:10:00]} 38. b3 {[%emt 0:00:57][%cal Oc3c4]} Qb8 {[%emt 0:01:53]} (38... b5 $15 {feels stronger.}) 39. Kg1 {[%emt 0:05:47]} Ne4 {[%emt 0:03:49]} 40. fxe4 $2 {[%emt 0:08:35]} (40. Ne5+ $11 Nxe5 (40... fxe5 41. fxe4 exd4 42. Qf3+ Kg7 43. cxd4 $11) 41. fxe4) 40... Qg3+ $17 {[%emt 0:00:07]} 41. Kf1 {[%emt 0:04:08] [#] Nhf2 would now be deadly.} Qxh3+ {[%emt 0:01:02][%mdl 4096] Endgame. KQN-KQN} 42. Ke1 $2 {[%emt 0:01:24][%mdl 8192] Now White is beyond hope.} (42. Kf2 $17) 42... Nf4 $19 {[%emt 0:00:00]} 43. Nxf4 {[%emt 0:00:00]} Qxc3+ {[%emt 0:00:00]} 44. Kf1 {[%emt 0:00:00]} gxf4 {[%emt 0:00:00]} 45. exd5 {[%emt 0:00:00]} cxd5 {[%emt 0:00:00] Strongly threatening ...Qh3+. KQ-KQ} ({And not} 45... Qxb3 46. Qe6+ (46. dxc6 Qh3+ 47. Qg2 Qd3+ 48. Qe2 Qh3+ 49. Qg2 Qd3+ 50. Qe2 Qh3+ $11) 46... Kg7 47. Qe7+ Kg8 48. Qe4 $11 (48. dxc6 Qc4+ 49. Kf2 Qxc6 $11)) 46. Qb5 {[%emt 0:00:00]} Qf3+ {[%emt 0:00:00]} 47. Ke1 {[%emt 0:00:00]} Qxg4 {[%emt 0:00:00] Hoping for ...f3.} 48. Qxb6 {[%emt 0:00:00]} Qg1+ {[%emt 0:00:00]} 49. Kd2 {[%emt 0:00:00]} Qe3+ {[%emt 0:00:00]} 50. Kc2 {[%emt 0:00:00]} Qe4+ {[%emt 0:00:00]} 51. Kc3 {[%emt 0:00:00] Black mates.} f3 {[%emt 0:00:00]} 52. Qc7+ {[%emt 0:00:00]} Kg6 {[%emt 0:00:00]} 53. Qg3+ {[%emt 0:00:00]} Kf5 {[%emt 0:00:00]} 54. Qh3+ {[%emt 0:00:00]} Qg4 {[%emt 0:00:00]} 55. Qh7+ {[%emt 0:00:00]} Kf4 {[%emt 0:00:00]} 56. Qc7+ {[%emt 0:00:00]} Ke3 {[%emt 0:00:00]} 57. Qe7+ {[%emt 0:00:00]} Qe4 {[%emt 0:00:00]} 58. Qxf6 {[%emt 0:00:00]} Qd3+ {[%emt 0:00:38] Weighted Error Value: White=0.32/Black=0.06 (flawless) .  Loses game:     	White=1     	---        Mistake:       	White=2     	Black=2      Inaccurate:     	White=3     	Black=1      OK:         	White=17    	Black=6      Best:        	White=2     	Black=2} 0-1